bitfinex/quotes_BTCUSD_20250907
["timestamp","ask_amount","ask_price","bid_price","bid_amount"]
[1757233549490,0.17974144,111280.0,111270.0,0.27106481]
[1757233549706,0.17974144,111280.0,111270.0,0.27429481]
[1757233550744,0.17974144,111280.0,111270.0,0.46289835]
[1757233552526,0.17974144,111280.0,111270.0,0.64264131]
[1757233552712,0.17983379,111300.0,111280.0,0.17972681]
[1757233552922,0.17983379,111300.0,111290.0,0.62187657]
[1757233553164,0.17983379,111300.0,111290.0,0.61963019]
[1757233554203,0.17983379,111300.0,111290.0,0.65970183]
[1757233554421,0.18283379,111300.0,111290.0,0.65970183]
[1757233554626,0.18083379,111300.0,111290.0,0.47999117]
[1757233554829,0.18083379,111300.0,111290.0,0.65970183]
[1757233555045,0.18183379,111300.0,111290.0,1.02064065]
[1757233555252,0.00213928,111300.0,111290.0,1.02064065]
[1757233555466,0.18183379,111300.0,111290.0,1.1336465]
[1757233555684,0.18183379,111300.0,111290.0,0.48676395]
[1757233555900,0.18183379,111300.0,111290.0,0.33919456]
[1757233556106,0.18183379,111300.0,111290.0,0.31220645]
[1757233556982,0.18283379,111300.0,111290.0,0.31220645]
[1757233557414,0.18389379,111300.0,111290.0,0.15493645]
[1757233557628,0.18389379,111300.0,111290.0,0.30897645]
[1757233557837,0.18189379,111300.0,111290.0,0.30897645]
[1757233558748,0.18189379,111300.0,111290.0,0.15493645]
[1757233558958,0.18189379,111300.0,111290.0,0.26890481]
[1757233559160,0.18279608,111300.0,111290.0,0.11285481]
[1757233559334,0.18582608,111300.0,111290.0,0.26689481]
[1757233560585,0.18582608,111300.0,111290.0,0.11285481]
[1757233560849,0.18582608,111300.0,111290.0,0.24591599]
[1757233561295,0.18061295,111290.0,111280.0,0.22304]
[1757233561523,0.17972681,111280.0,111270.0,0.00323]
[1757233561773,0.17972681,111280.0,111270.0,0.17808882]
[1757233561949,0.17972681,111280.0,111270.0,0.18009882]
[1757233562574,0.18178681,111280.0,111270.0,0.26874481]
[1757233563663,0.18481681,111280.0,111270.0,0.26673481]
[1757233564112,0.18178681,111280.0,111270.0,0.26874481]
[1757233564966,0.17972681,111280.0,111270.0,0.27197481]
[1757233565174,0.17972681,111280.0,111270.0,0.27297481]
[1757233565607,0.17972681,111280.0,111270.0,0.5735842]
[1757233565785,0.17972681,111280.0,111270.0,0.8400842]
[1757233566040,0.17972681,111280.0,111270.0,0.71821777]
[1757233566243,0.17972681,111280.0,111270.0,0.53947481]
[1757233566446,0.17972681,111280.0,111270.0,1.02082716]
[1757233566653,0.17971066,111290.0,111280.0,0.17972681]
[1757233566816,0.17971066,111290.0,111280.0,0.84499219]
[1757233567022,0.17971066,111290.0,111280.0,0.66526538]
[1757233567825,0.17971066,111290.0,111280.0,0.5433828]
[1757233568013,0.17971066,111290.0,111280.0,0.66526538]
[1757233568216,0.17971066,111290.0,111280.0,0.84499219]
[1757233568663,0.17971066,111290.0,111280.0,0.66526538]
[1757233568864,0.17971066,111290.0,111280.0,0.84699219]
[1757233569072,0.17971066,111290.0,111280.0,0.86793101]
[1757233571723,0.18881851,111300.0,111280.0,0.86793101]
[1757233571929,0.17983379,111300.0,111290.0,0.81988486]
[1757233572144,0.17983379,111300.0,111290.0,0.86298061]
[1757233572742,0.17983379,111300.0,111290.0,0.68326995]
[1757233573203,0.17983379,111300.0,111290.0,0.86298061]
[1757233574011,0.17983379,111300.0,111290.0,1.12948061]
[1757233574363,0.00013928,111300.0,111290.0,1.12948061]
[1757233574771,0.00013928,111300.0,111290.0,1.15646824]
[1757233575634,0.17983379,111300.0,111290.0,0.98573659]
[1757233575838,0.17983379,111300.0,111290.0,0.5306072]
[1757233576040,0.17983379,111300.0,111290.0,0.64796056]
[1757233576551,0.17983379,111300.0,111290.0,0.94956995]
[1757233576757,0.17983379,111300.0,111290.0,0.64792056]
[1757233576960,0.17983379,111300.0,111290.0,1.12924061]
[1757233577191,0.00013928,111300.0,111290.0,1.13823489]
[1757233577599,0.17983379,111300.0,111290.0,1.16522269]
[1757233577907,0.17983379,111300.0,111290.0,1.15622841]
[1757233578828,0.17983379,111300.0,111290.0,1.12924061]
[1757233580009,0.00013928,111300.0,111290.0,1.12924061]
[1757233580210,0.00013928,111300.0,111290.0,1.20932347]
[1757233580860,0.00013928,111300.0,111290.0,0.90771408]
[1757233581012,0.00013928,111300.0,111290.0,1.20932347]
[1757233581781,0.00013928,111300.0,111290.0,1.21032347]
[1757233581941,0.00013928,111300.0,111290.0,1.21132347]
[1757233582763,0.00013928,111300.0,111290.0,1.55132347]
[1757233582934,0.00013928,111300.0,111290.0,1.47124061]
[1757233583364,0.00013928,111300.0,111290.0,1.55136522]
[1757233584062,0.00013928,111300.0,111290.0,1.09631583]
[1757233584271,0.17983379,111300.0,111290.0,1.55116522]
[1757233584566,0.17983379,111300.0,111290.0,1.57815222]
[1757233584924,0.17983379,111300.0,111290.0,1.24520156]
[1757233585120,0.17983379,111300.0,111290.0,1.55116522]
[1757233586216,0.17983379,111300.0,111290.0,1.37145456]
[1757233586392,0.17983379,111300.0,111290.0,1.39792522]
[1757233586596,0.17983379,111300.0,111290.0,1.55116522]
[1757233586804,0.17983379,111300.0,111290.0,1.39792522]
[1757233587103,0.17983379,111300.0,111290.0,1.55116522]
[1757233587737,0.17983379,111300.0,111290.0,1.21821456]
[1757233587964,0.17983379,111300.0,111290.0,1.29132995]
[1757233588142,0.17983379,111300.0,111290.0,1.47104061]
[1757233589202,0.00013928,111300.0,111290.0,1.47104061]
[1757233591587,0.00013928,111300.0,111290.0,1.36572756]
[1757233591787,0.00013928,111300.0,111290.0,1.3927139]
[1757233592408,0.00013928,111300.0,111290.0,1.8301139]
[1757233592617,0.00013928,111300.0,111290.0,1.91023851]
[1757233595642,0.00013928,111300.0,111290.0,1.93871504]
[1757233597643,0.00013928,111300.0,111290.0,2.1192245]
[1757233597846,0.2769178,111330.0,111310.0,0.20061719]
[1757233598054,0.00735501,111330.0,111320.0,0.89644284]
[1757233599522,0.00735501,111330.0,111320.0,0.71582215]
[1757233600419,0.1890011,111330.0,111320.0,0.51955704]
[1757233600627,0.1870011,111330.0,111320.0,0.71574215]
[1757233600927,0.00735501,111330.0,111320.0,0.71582215]
[1757233602363,0.00735501,111330.0,111320.0,0.75709071]
[1757233602522,0.00735501,111330.0,111320.0,0.98025428]
[1757233602953,0.00735501,111330.0,111320.0,0.78406917]
[1757233604151,0.00735501,111330.0,111320.0,0.58780406]
[1757233604363,0.00735501,111330.0,111320.0,0.63118917]
[1757233604562,0.00735501,111330.0,111320.0,0.78402917]
[1757233606252,0.00735501,111330.0,111320.0,1.05038989]
[1757233607817,0.00735501,111330.0,111320.0,1.246575]
[1757233608221,0.00735501,111330.0,111320.0,1.32021428]
[1757233608587,0.00735501,111330.0,111320.0,1.40033889]
[1757233609183,0.00735501,111330.0,111320.0,1.42881542]
[1757233610148,0.00735501,111330.0,111320.0,1.27597542]
[1757233610460,0.00735501,111330.0,111320.0,1.42865542]
[1757233611017,0.00735501,111330.0,111320.0,1.47775313]
[1757233612993,0.00735501,111330.0,111320.0,1.69351313]
[1757233613387,0.00735501,111330.0,111320.0,1.69451313]
[1757233613872,0.00735501,111330.0,111320.0,1.69751313]
[1757233614278,0.00735501,111330.0,111320.0,1.46470852]
[1757233614528,0.00735501,111330.0,111320.0,1.69714536]
[1757233614784,0.25047319,111370.0,111350.0,0.20053753]
[1757233615017,0.0002,111370.0,111360.0,0.71232762]
[1757233615188,0.17990685,111370.0,111360.0,0.71547762]
[1757233615336,0.17990685,111370.0,111360.0,0.72463785]
[1757233615825,0.17990685,111370.0,111360.0,0.52845274]
[1757233616029,0.17990685,111370.0,111360.0,0.39244015]
[1757233616224,0.17990685,111370.0,111360.0,0.54504015]
[1757233616448,0.18194685,111370.0,111360.0,0.22421334]
[1757233616665,0.18688685,111370.0,111360.0,0.37472334]
[1757233616888,0.18488685,111370.0,111360.0,0.37468334]
[1757233617385,0.18588685,111370.0,111360.0,0.37468334]
[1757233617875,0.18488685,111370.0,111360.0,0.37468334]
[1757233618060,0.18688685,111370.0,111360.0,0.37468334]
[1757233618263,0.18688685,111370.0,111360.0,0.22216334]
[1757233618517,0.18688685,111370.0,111360.0,0.37468334]
[1757233619386,0.18488685,111370.0,111360.0,0.37468334]
[1757233619592,0.18488685,111370.0,111360.0,0.5629634]
[1757233619809,0.18688685,111370.0,111360.0,0.5629634]
[1757233620586,0.18394685,111370.0,111360.0,0.5650134]
[1757233620814,0.18394685,111370.0,111360.0,0.8315134]
[1757233621886,0.18190685,111370.0,111360.0,1.02294346]
[1757233622053,0.18190685,111370.0,111360.0,1.20254116]
[1757233622869,0.00232528,111370.0,111360.0,1.20254116]
[1757233623172,0.17990685,111370.0,111360.0,1.20254116]
[1757233623586,0.18090685,111370.0,111360.0,1.23101769]
[1757233624379,0.18090685,111370.0,111360.0,0.89889999]
[1757233624597,0.18294685,111370.0,111360.0,0.49071334]
[1757233624828,0.18294685,111370.0,111360.0,0.8312734]
[1757233628167,0.18090685,111370.0,111360.0,1.01955346]
[1757233628384,0.18090685,111370.0,111360.0,1.02256346]
[1757233628562,0.18594685,111370.0,111360.0,0.8291434]
[1757233629734,0.18287685,111370.0,111360.0,0.8312434]
[1757233630768,0.18287685,111370.0,111360.0,0.83115335]
[1757233631793,0.18287685,111370.0,111360.0,1.01943341]
[1757233632021,0.18287685,111370.0,111360.0,0.83115335]
[1757233632630,0.18594685,111370.0,111360.0,0.83115335]
[1757233633032,0.18287685,111370.0,111360.0,0.83115335]
[1757233633238,0.18090685,111370.0,111360.0,1.20204111]
[1757233634090,0.00132528,111370.0,111360.0,1.20204111]
[1757233634299,0.18090685,111370.0,111360.0,1.4187977]
[1757233634511,0.18090685,111370.0,111360.0,1.23051764]
[1757233636776,0.18090685,111370.0,111360.0,1.20204111]
[1757233638309,0.00132528,111370.0,111360.0,1.20204111]
[1757233638544,0.18090685,111370.0,111360.0,1.20204111]
[1757233639289,0.18090685,111370.0,111360.0,1.22901132]
[1757233641199,0.18090685,111370.0,111360.0,1.29308821]
[1757233641200,0.00132528,111370.0,111360.0,1.29308821]
[1757233641407,0.18090685,111370.0,111360.0,1.29308821]
[1757233643870,0.00132528,111370.0,111360.0,1.29308821]
[1757233645812,0.00132528,111370.0,111360.0,1.73048821]
[1757233646035,0.00132528,111370.0,111360.0,1.91876827]
[1757233646866,0.001,111370.0,111360.0,1.91876827]
[1757233647058,8e-05,111380.0,111370.0,0.46452616]
[1757233647263,0.00016342,111380.0,111370.0,0.96959436]
[1757233647450,0.00016342,111380.0,111370.0,0.97470436]
[1757233647804,0.17972887,111380.0,111370.0,1.00167239]
[1757233648435,0.18072887,111380.0,111370.0,1.00167239]
[1757233648639,0.18072887,111380.0,111370.0,0.73766662]
[1757233649074,0.00116342,111380.0,111370.0,0.91724819]
[1757233649287,0.18072887,111380.0,111370.0,0.39730656]
[1757233649434,0.18072887,111380.0,111370.0,0.73766662]
[1757233649636,0.00116342,111380.0,111370.0,0.91724819]
[1757233650626,0.18072887,111380.0,111370.0,0.91724819]
[1757233651657,0.18072887,111380.0,111370.0,0.72885746]
[1757233652983,0.00116342,111380.0,111370.0,0.72885746]
[1757233653199,0.00116342,111380.0,111370.0,1.27050743]
[1757233653402,0.00116342,111380.0,111370.0,1.32194774]
[1757233653557,0.00116342,111380.0,111370.0,1.13377835]
[1757233653790,0.00116342,111380.0,111370.0,1.32194774]
[1757233654421,0.00116342,111380.0,111370.0,1.16986774]
[1757233654629,0.00116342,111380.0,111370.0,1.32194774]
[1757233655630,0.00016342,111380.0,111370.0,1.32194774]
[1757233656007,0.00016342,111380.0,111370.0,1.32494774]
[1757233656232,0.00052282,111400.0,111390.0,0.20048815]
[1757233656406,0.00098722,111400.0,111390.0,0.95887787]
[1757233656846,0.00098722,111400.0,111390.0,0.98583758]
[1757233657504,0.00098722,111400.0,111390.0,0.98579318]
[1757233658285,0.00098722,111400.0,111390.0,1.32579318]
[1757233658672,0.00098722,111400.0,111390.0,0.9504544]
[1757233659114,0.00098722,111400.0,111390.0,1.3672083]
[1757233660179,0.00098722,111400.0,111390.0,1.3671683]
[1757233660413,0.00098722,111400.0,111390.0,0.99082952]
[1757233660624,0.00098722,111400.0,111390.0,0.82647076]
[1757233660625,0.18052043,111400.0,111390.0,0.82647076]
[1757233660827,0.18263043,111400.0,111390.0,0.48346076]
[1757233661031,0.18263043,111400.0,111390.0,0.63650076]
[1757233661429,0.18263043,111400.0,111390.0,0.65743958]
[1757233661637,0.18263043,111400.0,111390.0,0.59353903]
[1757233661779,0.18263043,111400.0,111390.0,0.40536964]
[1757233661984,0.18263043,111400.0,111390.0,0.59353903]
[1757233662190,0.18263043,111400.0,111390.0,0.59670903]
[1757233662957,0.18263043,111400.0,111390.0,0.56974932]
[1757233663835,0.18263043,111400.0,111390.0,0.38157993]
[1757233664042,0.18585043,111400.0,111390.0,0.35537111]
[1757233664459,0.39923211,111400.0,111390.0,0.28637111]
[1757233664698,0.39923211,111400.0,111390.0,0.09391599]
[1757233664907,0.73923211,111400.0,111390.0,0.09391599]
[1757233665151,0.76620227,111400.0,111390.0,0.09391599]
[1757233665579,0.76620227,111400.0,111390.0,0.09191599]
[1757233666005,0.18048386,111370.0,111360.0,0.02697016]
[1757233666216,0.17962828,111350.0,111340.0,0.00317]
[1757233666442,0.17961263,111360.0,111350.0,0.00317]
[1757233666652,0.17961263,111360.0,111340.0,0.32177097]
[1757233666653,0.17961383,111350.0,111340.0,0.32177097]
[1757233666870,0.18172383,111350.0,111340.0,0.02907411]
[1757233667053,0.18172383,111350.0,111340.0,0.0021]
[1757233667253,0.18494383,111350.0,111340.0,0.15204]
[1757233667453,0.18172383,111350.0,111340.0,0.15414]
[1757233667664,0.18172383,111350.0,111340.0,0.0021]
[1757233667854,0.18172383,111350.0,111340.0,0.15422342]
[1757233668227,0.18172383,111350.0,111340.0,0.24613941]
[1757233668430,0.18172383,111350.0,111340.0,0.24503941]
[1757233668655,0.37311322,111350.0,111340.0,0.24603941]
[1757233668853,0.18494383,111350.0,111340.0,0.24603941]
[1757233669504,0.18494383,111350.0,111340.0,0.26697823]
[1757233670525,0.18494383,111350.0,111340.0,0.3069188]
[1757233670858,0.18494383,111350.0,111340.0,0.3049188]
[1757233671260,0.18594383,111350.0,111340.0,0.3049188]
[1757233671495,0.18494383,111350.0,111340.0,0.3049188]
[1757233671914,0.18594383,111350.0,111340.0,0.3049188]
[1757233672688,0.18272383,111350.0,111340.0,0.3070188]
[1757233672939,0.18061383,111350.0,111340.0,0.61166466]
[1757233673144,0.001,111350.0,111340.0,0.79129462]
[1757233673492,0.18061383,111350.0,111340.0,0.81826876]
[1757233673718,0.001,111350.0,111340.0,1.15826876]
[1757233674627,0.18856064,111370.0,111350.0,0.20055265]
[1757233674628,0.17959862,111360.0,111350.0,0.20055265]
[1757233674865,0.17959862,111360.0,111350.0,0.48860067]
[1757233675181,0.17959862,111360.0,111350.0,0.18712481]
[1757233675392,0.18170862,111360.0,111350.0,0.18395481]
[1757233676187,0.18592862,111360.0,111350.0,0.18185481]
[1757233676983,0.18683091,111360.0,111350.0,0.18185481]
[1757233680428,0.18683091,111360.0,111350.0,0.11285481]
[1757233680633,0.21114091,111360.0,111350.0,0.11285481]
[1757233680822,0.21114091,111360.0,111350.0,0.26489481]
[1757233681385,0.18051612,111350.0,111340.0,0.15212342]
[1757233681626,0.48732198,111350.0,111340.0,0.15212342]
[1757233681885,0.51163198,111350.0,111340.0,0.15212342]
[1757233682057,0.51163198,111350.0,111340.0,8.342e-05]
[1757233683028,0.53961533,111350.0,111340.0,8.342e-05]
[1757233683264,0.87961533,111350.0,111340.0,8.342e-05]
[1757233683509,0.87861533,111350.0,111340.0,8.342e-05]
[1757233683768,0.87961533,111350.0,111340.0,8.342e-05]
[1757233685049,0.87861533,111350.0,111340.0,8.342e-05]
[1757233685249,1.03065533,111350.0,111340.0,8.342e-05]
[1757233685500,1.03365533,111350.0,111340.0,8.342e-05]
[1757233685696,1.03065533,111350.0,111340.0,8.342e-05]
[1757233686430,1.03365533,111350.0,111340.0,8.342e-05]
[1757233686615,0.88161533,111350.0,111340.0,8.342e-05]
[1757233686853,1.03369533,111350.0,111340.0,8.342e-05]
[1757233687051,0.73221947,111350.0,111340.0,8.342e-05]
[1757233687183,1.03369533,111350.0,111340.0,8.342e-05]
[1757233690427,0.88161533,111350.0,111340.0,8.342e-05]
[1757233690654,0.73221947,111350.0,111340.0,8.342e-05]
[1757233691690,0.58013947,111350.0,111340.0,8.342e-05]
[1757233691890,0.73221947,111350.0,111340.0,8.342e-05]
[1757233693372,0.55582947,111350.0,111340.0,8.342e-05]
[1757233693597,0.70257947,111350.0,111340.0,0.00205342]
[1757233693804,0.18351612,111350.0,111340.0,0.11796823]
[1757233694048,0.18563612,111350.0,111340.0,0.27004823]
[1757233694265,0.18563612,111350.0,111340.0,0.26698823]
[1757233695232,0.18263612,111350.0,111340.0,0.26698823]
[1757233695913,0.18463612,111350.0,111340.0,0.26698823]
[1757233701251,0.18764612,111350.0,111340.0,0.26501823]
[1757233703397,0.18764612,111350.0,111340.0,8.342e-05]
[1757233703554,0.21232612,111350.0,111340.0,8.342e-05]
[1757233704578,0.55232612,111350.0,111340.0,8.342e-05]
[1757233704791,0.57931065,111350.0,111340.0,8.342e-05]
[1757233708672,0.57731065,111350.0,111340.0,8.342e-05]
[1757233709103,0.57931065,111350.0,111340.0,8.342e-05]
[1757233710477,0.67122664,111350.0,111340.0,8.342e-05]
[1757233711110,0.74026664,111350.0,111340.0,8.342e-05]
[1757233711322,0.89230664,111350.0,111340.0,8.342e-05]
[1757233711765,0.74026664,111350.0,111340.0,8.342e-05]
[1757233711946,0.89230664,111350.0,111340.0,8.342e-05]
[1757233714378,0.64835065,111350.0,111340.0,8.342e-05]
[1757233714756,0.80039065,111350.0,111340.0,8.342e-05]
[1757233715301,0.55162065,111350.0,111340.0,0.00205342]
[1757233715501,0.70366065,111350.0,111340.0,0.00205342]
[1757233715900,0.70667065,111350.0,111340.0,8.342e-05]
[1757233716315,0.70467065,111350.0,111340.0,8.342e-05]
[1757233716515,0.70667065,111350.0,111340.0,8.342e-05]
[1757233717150,0.55463065,111350.0,111340.0,8.342e-05]
[1757233717296,0.18463612,111350.0,111340.0,0.11293823]
[1757233717513,0.18463612,111350.0,111340.0,8.342e-05]
[1757233717514,0.18761612,111350.0,111340.0,8.342e-05]
[1757233717730,0.21242612,111350.0,111340.0,8.342e-05]
[1757233718762,0.23940977,111350.0,111340.0,8.342e-05]
[1757233720260,0.57940977,111350.0,111340.0,8.342e-05]
[1757233722727,0.73140977,111350.0,111340.0,8.342e-05]
[1757233723130,0.70659977,111350.0,111340.0,8.342e-05]
[1757233725944,0.73140977,111350.0,111340.0,8.342e-05]
[1757233728441,0.57940977,111350.0,111340.0,8.342e-05]
[1757233728645,0.73140977,111350.0,111340.0,8.342e-05]
[1757233729277,0.57940977,111350.0,111340.0,8.342e-05]
[1757233729483,0.73140977,111350.0,111340.0,8.342e-05]
[1757233730367,0.70659977,111350.0,111340.0,8.342e-05]
[1757233731111,0.67132576,111350.0,111340.0,8.342e-05]
[1757233731310,0.82332576,111350.0,111340.0,8.342e-05]
[1757233732244,0.82132576,111350.0,111340.0,8.342e-05]
[1757233732673,0.82732576,111350.0,111340.0,8.342e-05]
[1757233733052,0.82532576,111350.0,111340.0,8.342e-05]
[1757233735494,0.89636576,111350.0,111340.0,8.342e-05]
[1757233739149,0.80444977,111350.0,111340.0,8.342e-05]
[1757233741484,0.89636576,111350.0,111340.0,8.342e-05]
[1757233741696,0.80444977,111350.0,111340.0,8.342e-05]
[1757233743835,0.80494321,111350.0,111340.0,8.342e-05]
[1757233745684,0.62515321,111350.0,111340.0,8.342e-05]
[1757233745904,0.77711321,111350.0,111340.0,8.342e-05]
[1757233746070,0.62813321,111350.0,111340.0,8.342e-05]
[1757233746283,0.78009321,111350.0,111340.0,8.342e-05]
[1757233747064,0.62813321,111350.0,111340.0,8.342e-05]
[1757233747265,0.78009321,111350.0,111340.0,8.342e-05]
[1757233748290,0.62813321,111350.0,111340.0,8.342e-05]
[1757233748497,0.78009321,111350.0,111340.0,8.342e-05]
[1757233749814,0.77711321,111350.0,111340.0,0.00212342]
[1757233750054,0.70807321,111350.0,111340.0,0.00516342]
[1757233751078,0.70407321,111350.0,111340.0,0.00516342]
[1757233751706,0.55111321,111350.0,111340.0,0.00516342]
[1757233751861,0.70307321,111350.0,111340.0,0.00212342]
[1757233752253,0.55311321,111350.0,111340.0,0.00516342]
[1757233752525,0.70507321,111350.0,111340.0,0.00516342]
[1757233752714,0.70307321,111350.0,111340.0,0.00516342]
[1757233752926,0.70307321,111350.0,111340.0,0.00212342]
[1757233753260,0.70407321,111350.0,111340.0,0.00212342]
[1757233753471,0.70195321,111350.0,111340.0,0.00516342]
[1757233754078,0.70411321,111350.0,111340.0,0.00516342]
[1757233754509,0.55215321,111350.0,111340.0,0.00212342]
[1757233754767,0.70411321,111350.0,111340.0,0.00212342]
[1757233755374,0.70411321,111350.0,111340.0,8.342e-05]
[1757233755544,0.70411321,111350.0,111340.0,0.00212342]
[1757233755745,0.70724321,111350.0,111340.0,8.342e-05]
[1757233757858,0.73065321,111350.0,111340.0,8.342e-05]
[1757233761584,0.79969321,111350.0,111340.0,8.342e-05]
[1757233762471,0.64773321,111350.0,111340.0,8.342e-05]
[1757233762683,0.79969321,111350.0,111340.0,8.342e-05]
[1757233763482,0.62432321,111350.0,111340.0,8.342e-05]
[1757233763692,0.77315321,111350.0,111340.0,8.342e-05]
[1757233764039,0.77628321,111350.0,111340.0,8.342e-05]
[1757233765241,0.62432321,111350.0,111340.0,8.342e-05]
[1757233765458,0.77311321,111350.0,111340.0,0.00212342]
[1757233766329,0.70407321,111350.0,111340.0,0.00212342]
[1757233767175,0.70720321,111350.0,111340.0,0.00212342]
[1757233767715,0.70407321,111350.0,111340.0,0.00212342]
[1757233767916,0.70407321,111350.0,111340.0,0.00516342]
[1757233768318,0.55215321,111350.0,111340.0,0.00516342]
[1757233768527,0.70407321,111350.0,111340.0,0.00516342]
[1757233769730,0.70407321,111350.0,111340.0,0.00212342]
[1757233772110,0.70720321,111350.0,111340.0,8.342e-05]
[1757233772737,0.55215321,111350.0,111340.0,8.342e-05]
[1757233772929,0.70191321,111350.0,111340.0,0.00516342]
[1757233773129,0.36191321,111350.0,111340.0,0.38205758]
[1757233773369,0.36191321,111350.0,111340.0,0.4601105]
[1757233773580,0.36191321,111350.0,111340.0,0.57285945]
[1757233773581,0.20999321,111350.0,111340.0,0.57285945]
[1757233774224,0.18300956,111350.0,111340.0,0.57285945]
[1757233784008,0.18300956,111350.0,111340.0,0.58180633]
[1757233784184,0.18300956,111350.0,111340.0,0.57285945]
[1757233786157,0.18300956,111350.0,111340.0,0.38451823]
[1757233786365,0.18300956,111350.0,111340.0,0.57285945]
[1757233787641,0.18300956,111350.0,111340.0,0.75248941]
[1757233788812,0.18300956,111350.0,111340.0,0.76167517]
[1757233789842,0.18300956,111350.0,111340.0,0.58204521]
[1757233790482,0.18300956,111350.0,111340.0,0.57285945]
[1757233796105,0.18300956,111350.0,111340.0,0.75248941]
[1757233799830,0.18300956,111350.0,111340.0,0.57285945]
[1757233800031,0.18300956,111350.0,111340.0,0.75248941]
[1757233800277,0.18300956,111350.0,111340.0,0.57285945]
[1757233800884,0.18300956,111350.0,111340.0,0.75248941]
[1757233801086,0.00339573,111350.0,111340.0,0.75248941]
[1757233801309,0.18300956,111350.0,111340.0,0.82148941]
[1757233804481,0.00249344,111350.0,111340.0,0.82148941]
[1757233804666,0.00249344,111350.0,111340.0,1.78723063]
[1757233805059,0.00249344,111350.0,111340.0,1.98982404]
[1757233805311,0.00090229,111390.0,111380.0,0.38884549]
[1757233805491,0.00110229,111400.0,111390.0,0.20048815]
[1757233805692,0.00110229,111400.0,111390.0,0.48584536]
[1757233805874,0.1806355,111400.0,111390.0,0.48584536]
[1757233806067,0.00110229,111400.0,111390.0,0.48584536]
[1757233806276,0.1806355,111400.0,111390.0,0.48584536]
[1757233806492,0.1810999,111400.0,111390.0,0.30629603]
[1757233806691,0.1810999,111400.0,111390.0,0.3476194]
[1757233806929,0.1810999,111400.0,111390.0,0.52716873]
[1757233807347,0.1810999,111400.0,111390.0,0.3476194]
[1757233807551,0.0006644,111400.0,111390.0,0.86826995]
[1757233808298,0.0006644,111400.0,111390.0,1.20826995]
[1757233808507,0.0006644,111400.0,111390.0,1.05650995]
[1757233808719,0.0006644,111400.0,111390.0,1.20826995]
[1757233808939,0.0006644,111400.0,111390.0,1.20926995]
[1757233809363,0.0006644,111400.0,111390.0,1.20826995]
[1757233810014,0.0006644,111400.0,111390.0,1.20926995]
[1757233810228,0.0006644,111400.0,111390.0,1.06050995]
[1757233810430,0.0006644,111400.0,111390.0,1.21226995]
[1757233810878,0.0006644,111400.0,111390.0,1.22125463]
[1757233811471,0.0006644,111400.0,111390.0,1.06749463]
[1757233811683,0.0006644,111400.0,111390.0,1.21921463]
[1757233811826,0.0006644,111400.0,111390.0,1.22121463]
[1757233812042,0.0006644,111400.0,111390.0,1.06949463]
[1757233812242,0.0006644,111400.0,111390.0,1.22121463]
[1757233812810,0.0006644,111400.0,111390.0,1.22063913]
[1757233814439,0.0006644,111400.0,111390.0,1.92453913]
[1757233814886,0.0006644,111400.0,111390.0,1.95149889]
[1757233817638,0.0006644,111400.0,111390.0,2.13955236]
[1757233818318,0.01013926,111430.0,111420.0,0.70108926]
[1757233818520,0.01013926,111430.0,111420.0,0.89111273]
[1757233818732,0.01013926,111430.0,111420.0,0.92100727]
[1757233819384,0.01013926,111430.0,111420.0,1.23405273]
[1757233819623,0.01013926,111430.0,111420.0,1.2610045]
[1757233819848,0.00115592,111430.0,111420.0,1.35209874]
[1757233820096,0.00115592,111430.0,111420.0,1.39221241]
[1757233820328,0.00124917,111440.0,111430.0,0.38847716]
[1757233820553,0.00124917,111440.0,111430.0,0.63501315]
[1757233820767,0.00124917,111440.0,111430.0,0.82503662]
[1757233820982,0.00124917,111440.0,111430.0,1.38063662]
[1757233821220,0.0002,111450.0,111440.0,0.5895053]
[1757233821441,0.0002,111450.0,111440.0,0.82037705]
[1757233821665,0.0002,111450.0,111440.0,0.09682599]
[1757233821877,0.18055495,111450.0,111440.0,0.09682599]
[1757233822088,0.00110229,111450.0,111440.0,0.43876281]
[1757233822311,0.0002,111450.0,111440.0,0.43651946]
[1757233822524,0.0002,111450.0,111440.0,0.61598823]
[1757233822697,0.0002,111450.0,111440.0,0.63692705]
[1757233823146,0.0002,111450.0,111440.0,0.09682599]
[1757233823147,0.18055495,111450.0,111440.0,0.09682599]
[1757233823347,0.37069842,111450.0,111440.0,0.24652599]
[1757233823505,0.18264495,111450.0,111440.0,0.24652599]
[1757233823711,0.37365842,111450.0,111440.0,0.24455599]
[1757233823914,0.56171189,111450.0,111440.0,0.15264]
[1757233824135,0.56171189,111450.0,111440.0,0.001]
[1757233824553,0.92647189,111450.0,111440.0,0.001]
[1757233825394,0.92647189,111450.0,111430.0,0.11304]
[1757233825395,0.17946877,111440.0,111430.0,0.11304]
[1757233825604,0.48650998,111440.0,111430.0,0.20495599]
[1757233825814,0.17953321,111400.0,111390.0,0.11487549]
[1757233826036,0.17953321,111400.0,111390.0,0.42946074]
[1757233826447,0.17953321,111400.0,111390.0,0.35884862]
[1757233826654,0.00090229,111400.0,111390.0,0.35884862]
[1757233826862,0.1804338,111410.0,111390.0,0.53839737]
[1757233827071,0.1804338,111410.0,111400.0,0.09485599]
[1757233827301,0.1804338,111410.0,111400.0,0.26936481]
[1757233828130,0.48363942,111410.0,111400.0,0.26642481]
[1757233828337,0.48659942,111410.0,111400.0,0.09191599]
[1757233828559,0.48659942,111410.0,111400.0,0.1516]
[1757233829401,0.48659942,111410.0,111390.0,0.06909926]
[1757233829402,0.1804355,111400.0,111390.0,0.15173926]
[1757233829629,0.48451112,111400.0,111390.0,0.24565525]
[1757233829827,0.48660112,111400.0,111390.0,0.24565525]
[1757233830239,0.48660112,111400.0,111390.0,0.24365525]
[1757233830738,0.97820112,111400.0,111390.0,0.00013926]
[1757233830964,1.00296112,111400.0,111390.0,0.00013926]
[1757233831838,1.09487711,111400.0,111390.0,1e-08]
[1757233832275,1.14487711,111400.0,111390.0,1e-08]
[1757233832488,0.69216149,111400.0,111390.0,1e-08]
[1757233832698,0.99327711,111400.0,111390.0,1e-08]
[1757233832917,1.09491711,111400.0,111390.0,1e-08]
[1757233833577,0.85136112,111400.0,111390.0,1e-08]
[1757233834250,0.85236112,111400.0,111390.0,1e-08]
[1757233835556,0.94246612,111400.0,111390.0,1e-08]
[1757233835758,0.94346612,111400.0,111390.0,1e-08]
[1757233836804,0.94256383,111400.0,111390.0,1e-08]
[1757233837042,0.71963581,111400.0,111390.0,0.00197001]
[1757233837454,0.71963581,111400.0,111390.0,0.093886]
[1757233837943,0.5235255,111400.0,111390.0,0.093886]
[1757233838168,0.71963581,111400.0,111390.0,0.093886]
[1757233838749,0.71963581,111400.0,111390.0,0.091916]
[1757233839514,0.91885612,111400.0,111390.0,1e-08]
[1757233840356,0.71963581,111400.0,111390.0,1e-08]
[1757233840592,0.37754581,111400.0,111390.0,0.11799482]
[1757233843909,0.37958581,111400.0,111390.0,0.11482482]
[1757233844096,0.37958581,111400.0,111390.0,0.26449482]
[1757233844298,0.38269581,111400.0,111390.0,0.26449482]
[1757233844704,0.38269581,111400.0,111390.0,0.11285482]
[1757233844923,0.38269581,111400.0,111390.0,0.26449482]
[1757233845492,0.37958581,111400.0,111390.0,0.26449482]
[1757233845750,0.37958581,111400.0,111390.0,0.11482482]
[1757233845960,0.37958581,111400.0,111390.0,0.26449482]
[1757233846168,0.37958581,111400.0,111390.0,0.26646482]
[1757233846598,0.57880612,111400.0,111390.0,1e-08]